[Event "Titled Tuesday Blitz May 24 Early 2022"]
[White "Petrovskyi, Vadym"]
[Black "Martinez Alcantara, Jose Eduardo"]
[WhiteFideId "14165210"]
[BlackFideId "3805662"]
[WhiteElo "2400"]
[BlackElo "2690"]
[Result "0-1"]
[Round "03"]
[TimeControl "180+1"]
[Date "2022.05.24"]
[WhiteClock "0:00:03"]
[BlackClock "0:00:11"]

1. e4 {[%clk 0:03:00]}  c5 {[%clk 0:02:59]} 2. Nf3 {[%clk 0:03:00]}  d6 {[%clk 0:03:00]} 3. d4 {[%clk 0:03:01]}  cxd4 {[%clk 0:03:01]} 4. Nxd4 {[%clk 0:03:01]}  Nf6 {[%clk 0:03:02]} 5. Nc3 {[%clk 0:03:02]}  Nc6 {[%clk 0:03:02]} 6. Bg5 {[%clk 0:03:01]}  e6 {[%clk 0:03:03]} 7. Qd2 {[%clk 0:03:01]}  a6 {[%clk 0:03:03]} 8. f4 {[%clk 0:03:00]}  Bd7 {[%clk 0:03:02]} 9. O-O-O {[%clk 0:03:00]}  Be7 {[%clk 0:03:03]} 10. Nf3 {[%clk 0:03:00]}  b5 {[%clk 0:03:03]} 11. Bxf6 {[%clk 0:03:00]}  gxf6 {[%clk 0:03:03]} 12. Kb1 {[%clk 0:03:01]}  Qa5 {[%clk 0:03:02]} 13. Bd3 {[%clk 0:03:01]}  h5 {[%clk 0:02:58]} 14. f5 {[%clk 0:03:00]}  O-O-O {[%clk 0:02:51]} 15. g3 {[%clk 0:02:44]}  Kb7 {[%clk 0:02:51]} 16. Ne2 {[%clk 0:02:32]}  Qxd2 {[%clk 0:02:50]} 17. Rxd2 {[%clk 0:02:33]}  Bf8 {[%clk 0:02:29]} 18. Ned4 {[%clk 0:02:26]}  e5 {[%clk 0:02:03]} 19. Ne2 {[%clk 0:02:20]}  d5 {[%clk 0:01:49]} 20. exd5 {[%clk 0:02:06]}  Ne7 {[%clk 0:01:49]} 21. Nh4 {[%clk 0:01:52]}  Bh6 {[%clk 0:01:48]} 22. Rdd1 {[%clk 0:01:43]}  Nxd5 {[%clk 0:01:46]} 23. Be4 {[%clk 0:01:23]}  Bc6 {[%clk 0:01:45]} 24. Ng2 {[%clk 0:01:18]}  Kc7 {[%clk 0:01:35]} 25. Rd3 {[%clk 0:01:05]}  Ne7 {[%clk 0:01:30]} 26. Rc3 {[%clk 0:01:00]}  Kb6 {[%clk 0:01:30]} 27. Bxc6 {[%clk 0:00:56]}  Nxc6 {[%clk 0:01:31]} 28. Rd3 {[%clk 0:00:53]}  Rxd3 {[%clk 0:01:16]} 29. cxd3 {[%clk 0:00:54]}  Rd8 {[%clk 0:01:16]} 30. Rd1 {[%clk 0:00:52]}  b4 {[%clk 0:01:17]} 31. Ne1 {[%clk 0:00:45]}  Ne7 {[%clk 0:01:09]} 32. Nc2 {[%clk 0:00:41]}  a5 {[%clk 0:01:09]} 33. a3 {[%clk 0:00:36]}  b3 {[%clk 0:00:58]} 34. Ne1 {[%clk 0:00:29]}  Nxf5 {[%clk 0:00:57]} 35. Ng2 {[%clk 0:00:29]}  Nd4 {[%clk 0:00:53]} 36. Nc3 {[%clk 0:00:28]}  Nf3 {[%clk 0:00:44]} 37. Ne1 {[%clk 0:00:21]}  Nxe1 {[%clk 0:00:40]} 38. Rxe1 {[%clk 0:00:22]}  Rxd3 {[%clk 0:00:40]} 39. Rf1 {[%clk 0:00:22]}  Bg7 {[%clk 0:00:24]} 40. Rf5 {[%clk 0:00:18]}  h4 {[%clk 0:00:21]} 41. gxh4 {[%clk 0:00:16]}  Rh3 {[%clk 0:00:21]} 42. Kc1 {[%clk 0:00:13]}  Rxh4 {[%clk 0:00:21]} 43. Rf3 {[%clk 0:00:13]}  Kc6 {[%clk 0:00:20]} 44. Nd1 {[%clk 0:00:12]}  Bh6+ {[%clk 0:00:20]} 45. Kb1 {[%clk 0:00:12]}  a4 {[%clk 0:00:20]} 46. h3 {[%clk 0:00:12]}  Kd5 {[%clk 0:00:20]} 47. Nc3+ {[%clk 0:00:12]}  Ke6 {[%clk 0:00:21]} 48. Rd3 {[%clk 0:00:09]}  f5 {[%clk 0:00:19]} 49. Nb5 {[%clk 0:00:10]}  e4 {[%clk 0:00:18]} 50. Rc3 {[%clk 0:00:09]}  Bg7 {[%clk 0:00:17]} 51. Rc6+ {[%clk 0:00:07]}  Kd5 {[%clk 0:00:15]} 52. Rc7 {[%clk 0:00:03]}  Rxh3 {[%clk 0:00:15]} 53. Kc1 {[%clk 0:00:04]}  Rh2 {[%clk 0:00:13]} 54. Ra7 {[%clk 0:00:03]}  Bxb2+ {[%clk 0:00:12]} 55. Kd1 {[%clk 0:00:04]}  Be5 {[%clk 0:00:11]} 56. Rxa4 {[%clk 0:00:04]}  b2 {[%clk 0:00:11]} 57. Rb4 {[%clk 0:00:04]}  e3 {[%clk 0:00:12]} 58. Rb3 {[%clk 0:00:02]}  f4 {[%clk 0:00:12]} 59. a4 {[%clk 0:00:02]}  f3 {[%clk 0:00:12]} 60. a5 {[%clk 0:00:02]}  f2 {[%clk 0:00:12]} 61. Ke2 {[%clk 0:00:03]}  Rh1 {[%clk 0:00:11]} 62. Rd3+ {[%clk 0:00:03]}  Kc5 {[%clk 0:00:11]} 63. Rxe3 {[%clk 0:00:02]}  f1=Q+ {[%clk 0:00:11]} 64. Kd2 {[%clk 0:00:03]}  b1=N+ {[%clk 0:00:11]} 65. Kc2 {[%clk 0:00:03]}  Qd1# {[%clk 0:00:11]} 0-1


[Site "https://www.chess.com"]

[Event "Titled Tuesday Blitz May 24 Early 2022"]
[White "Pham, Le Thao Nguyen"]
[Black "Ozkan, Ervin"]
[WhiteFideId "12401226"]
[BlackFideId "6306004"]
[WhiteElo "2271"]
[BlackElo "2226"]
[Result "0-1"]
[Round "03"]
[TimeControl "180+1"]
[Date "2022.05.25"]
[WhiteClock "0:00:09"]
[BlackClock "0:00:17"]

1. d4 {[%clk 0:02:55]}  d5 {[%clk 0:02:59]} 2. Nf3 {[%clk 0:02:53]}  Nf6 {[%clk 0:02:59]} 3. Bf4 {[%clk 0:02:52]}  e6 {[%clk 0:02:59]} 4. e3 {[%clk 0:02:48]}  Bd6 {[%clk 0:02:59]} 5. Bg3 {[%clk 0:02:30]}  O-O {[%clk 0:02:59]} 6. Nbd2 {[%clk 0:02:30]}  b6 {[%clk 0:03:00]} 7. Bd3 {[%clk 0:02:24]}  Bb7 {[%clk 0:03:00]} 8. O-O {[%clk 0:02:04]}  c5 {[%clk 0:03:00]} 9. c3 {[%clk 0:02:00]}  Nc6 {[%clk 0:03:00]} 10. Ne5 {[%clk 0:02:00]}  Qc7 {[%clk 0:03:00]} 11. f4 {[%clk 0:02:01]}  Ne7 {[%clk 0:03:00]} 12. Bh4 {[%clk 0:01:57]}  Ne4 {[%clk 0:02:58]} 13. Bxe7 {[%clk 0:01:56]}  Qxe7 {[%clk 0:02:58]} 14. Qc2 {[%clk 0:01:50]}  f6 {[%clk 0:02:53]} 15. Bxe4 {[%clk 0:01:47]}  dxe4 {[%clk 0:02:48]} 16. Nec4 {[%clk 0:01:47]}  f5 {[%clk 0:02:48]} 17. Nxd6 {[%clk 0:01:46]}  Qxd6 {[%clk 0:02:47]} 18. Nc4 {[%clk 0:01:47]}  Qe7 {[%clk 0:02:41]} 19. Ne5 {[%clk 0:01:41]}  Rfd8 {[%clk 0:02:31]} 20. Rfd1 {[%clk 0:01:41]}  Rac8 {[%clk 0:02:31]} 21. dxc5 {[%clk 0:01:35]}  Qxc5 {[%clk 0:02:31]} 22. Kf2 {[%clk 0:01:30]}  Kf8 {[%clk 0:02:06]} 23. Nd7+ {[%clk 0:01:19]}  Rxd7 {[%clk 0:02:03]} 24. Rxd7 {[%clk 0:01:20]}  Ba6 {[%clk 0:02:02]} 25. Qa4 {[%clk 0:01:20]}  Bb5 {[%clk 0:01:55]} 26. Qxa7 {[%clk 0:01:19]}  Bxd7 {[%clk 0:01:55]} 27. Qxd7 {[%clk 0:01:20]}  Re8 {[%clk 0:01:48]} 28. Rd1 {[%clk 0:01:14]}  Re7 {[%clk 0:01:40]} 29. Qd6 {[%clk 0:00:59]}  Qb5 {[%clk 0:01:35]} 30. Rd2 {[%clk 0:00:59]}  Kf7 {[%clk 0:01:35]} 31. b3 {[%clk 0:00:54]}  Ra7 {[%clk 0:01:33]} 32. c4 {[%clk 0:00:44]}  Qa5 {[%clk 0:01:31]} 33. Qd8 {[%clk 0:00:42]}  Re7 {[%clk 0:01:29]} 34. h3 {[%clk 0:00:39]}  Qc3 {[%clk 0:01:24]} 35. Rd7 {[%clk 0:00:30]}  Qc2+ {[%clk 0:01:14]} 36. Kg3 {[%clk 0:00:29]}  Rxd7 {[%clk 0:01:06]} 37. Qxd7+ {[%clk 0:00:30]}  Kf6 {[%clk 0:01:07]} 38. Qd4+ {[%clk 0:00:28]}  Kf7 {[%clk 0:01:08]} 39. Qxb6 {[%clk 0:00:28]}  Qxa2 {[%clk 0:01:08]} 40. Qc7+ {[%clk 0:00:26]}  Kf6 {[%clk 0:01:08]} 41. Qe5+ {[%clk 0:00:23]}  Kf7 {[%clk 0:01:07]} 42. Qc3 {[%clk 0:00:23]}  h5 {[%clk 0:01:00]} 43. c5 {[%clk 0:00:23]}  Qe2 {[%clk 0:00:50]} 44. c6 {[%clk 0:00:21]}  h4+ {[%clk 0:00:33]} 45. Kh2 {[%clk 0:00:21]}  g5 {[%clk 0:00:26]} 46. fxg5 {[%clk 0:00:17]}  Qf2 {[%clk 0:00:25]} 47. Qc1 {[%clk 0:00:17]}  f4 {[%clk 0:00:23]} 48. exf4 {[%clk 0:00:09]}  e3 {[%clk 0:00:22]} 49. c7 {[%clk 0:00:08]}  e2 {[%clk 0:00:21]} 50. g6+ {[%clk 0:00:06]}  Kxg6 {[%clk 0:00:20]} 51. Qc2+ {[%clk 0:00:06]}  Kh6 {[%clk 0:00:19]} 52. Qxe2 {[%clk 0:00:07]}  Qxe2 {[%clk 0:00:18]} 53. c8=Q {[%clk 0:00:07]}  Qf2 {[%clk 0:00:18]} 54. Qh8+ {[%clk 0:00:07]}  Kg6 {[%clk 0:00:18]} 55. Qg8+ {[%clk 0:00:06]}  Kf6 {[%clk 0:00:19]} 56. Qg4 {[%clk 0:00:07]}  Qe3 {[%clk 0:00:18]} 57. Qxh4+ {[%clk 0:00:07]}  Kf7 {[%clk 0:00:18]} 58. Qh5+ {[%clk 0:00:07]}  Kf6 {[%clk 0:00:18]} 59. Qf3 {[%clk 0:00:07]}  Qe1 {[%clk 0:00:17]} 60. Qg3 {[%clk 0:00:08]}  Qe2 {[%clk 0:00:16]} 61. Qg5+ {[%clk 0:00:08]}  Kf7 {[%clk 0:00:16]} 62. Qh5+ {[%clk 0:00:08]}  Qxh5 {[%clk 0:00:16]} 63. g4 {[%clk 0:00:08]}  Qb5 {[%clk 0:00:17]} 64. Kg3 {[%clk 0:00:08]}  Qxb3+ {[%clk 0:00:17]} 65. Kh4 {[%clk 0:00:09]}  Qf3 {[%clk 0:00:17]} 0-1


[Site "https://www.chess.com"]

[Event "Titled Tuesday Blitz May 24 Early 2022"]
[White "Pourkashiyan, Atousa"]
[Black "Solovchuk, Oleksiy"]
[WhiteFideId "12502014"]
[BlackFideId "14115220"]
[WhiteElo "2247"]
[BlackElo "2305"]
[Result "1-0"]
[Round "03"]
[TimeControl "180+1"]
[Date "2022.05.25"]
[WhiteClock "0:00:21"]
[BlackClock "0:00:09"]

1. e4 {[%clk 0:03:00]}  c5 {[%clk 0:02:57]} 2. Nf3 {[%clk 0:03:00]}  e6 {[%clk 0:02:57]} 3. d4 {[%clk 0:03:01]}  cxd4 {[%clk 0:02:58]} 4. Nxd4 {[%clk 0:03:01]}  Nf6 {[%clk 0:02:58]} 5. Nc3 {[%clk 0:03:00]}  d6 {[%clk 0:02:58]} 6. Be2 {[%clk 0:03:00]}  Be7 {[%clk 0:02:59]} 7. O-O {[%clk 0:02:58]}  O-O {[%clk 0:02:58]} 8. Be3 {[%clk 0:02:58]}  Nbd7 {[%clk 0:02:58]} 9. f4 {[%clk 0:02:55]}  a6 {[%clk 0:02:58]} 10. a4 {[%clk 0:02:54]}  Qc7 {[%clk 0:02:57]} 11. Kh1 {[%clk 0:02:52]}  Re8 {[%clk 0:02:57]} 12. Bd3 {[%clk 0:02:52]}  g6 {[%clk 0:02:56]} 13. Qf3 {[%clk 0:02:51]}  e5 {[%clk 0:02:56]} 14. Nb3 {[%clk 0:02:48]}  exf4 {[%clk 0:02:54]} 15. Bxf4 {[%clk 0:02:47]}  Rf8 {[%clk 0:02:50]} 16. Rae1 {[%clk 0:02:39]}  Ne5 {[%clk 0:02:49]} 17. Qe3 {[%clk 0:02:05]}  Be6 {[%clk 0:02:44]} 18. Nd4 {[%clk 0:02:03]}  Rac8 {[%clk 0:02:34]} 19. Nxe6 {[%clk 0:01:53]}  fxe6 {[%clk 0:02:34]} 20. Ne2 {[%clk 0:01:49]}  Nc4 {[%clk 0:01:52]} 21. Qh3 {[%clk 0:01:39]}  Qd7 {[%clk 0:01:33]} 22. Bh6 {[%clk 0:01:28]}  Rf7 {[%clk 0:01:28]} 23. b3 {[%clk 0:01:10]}  Ne5 {[%clk 0:01:23]} 24. Nd4 {[%clk 0:01:07]}  Nfg4 {[%clk 0:01:04]} 25. Rxf7 {[%clk 0:01:03]}  Kxf7 {[%clk 0:01:04]} 26. Rf1+ {[%clk 0:01:01]}  Kg8 {[%clk 0:01:04]} 27. Bf4 {[%clk 0:00:57]}  Rf8 {[%clk 0:00:21]} 28. Qg3 {[%clk 0:00:57]}  Nxd3 {[%clk 0:00:16]} 29. Qxg4 {[%clk 0:00:54]}  Ne5 {[%clk 0:00:15]} 30. Qxe6+ {[%clk 0:00:47]}  Qxe6 {[%clk 0:00:16]} 31. Nxe6 {[%clk 0:00:48]}  Rf6 {[%clk 0:00:16]} 32. Nc7 {[%clk 0:00:39]}  Rf7 {[%clk 0:00:12]} 33. Nd5 {[%clk 0:00:40]}  Bd8 {[%clk 0:00:12]} 34. Rd1 {[%clk 0:00:36]}  Ng4 {[%clk 0:00:11]} 35. Bg3 {[%clk 0:00:31]}  Bg5 {[%clk 0:00:10]} 36. h3 {[%clk 0:00:30]}  Ne5 {[%clk 0:00:11]} 37. Nb6 {[%clk 0:00:24]}  Be7 {[%clk 0:00:10]} 38. Nc8 {[%clk 0:00:21]}  h5 {[%clk 0:00:10]} 39. Nxe7+ {[%clk 0:00:18]}  Rxe7 {[%clk 0:00:10]} 40. Rxd6 {[%clk 0:00:19]}  Kf7 {[%clk 0:00:08]} 41. Bxe5 {[%clk 0:00:19]}  Rxe5 {[%clk 0:00:09]} 42. Rd7+ {[%clk 0:00:20]}  Kg8 {[%clk 0:00:08]} 43. Rxb7 {[%clk 0:00:20]}  Rxe4 {[%clk 0:00:09]} 44. Rb6 {[%clk 0:00:20]}  Kg7 {[%clk 0:00:09]} 45. Rxa6 {[%clk 0:00:21]}  Re2 {[%clk 0:00:09]} 46. Rc6 {[%clk 0:00:21]} 1-0


[Site "https://www.chess.com"]

[Event "Titled Tuesday Blitz May 24 Early 2022"]
[White "Riehle, Marco"]
[Black "Lobachev, Yury"]
[WhiteFideId "12904392"]
[BlackFideId "24138177"]
[WhiteElo "2462"]
[BlackElo "2309"]
[Result "1-0"]
[Round "03"]
[TimeControl "180+1"]
[Date "2022.05.25"]
[WhiteClock "0:02:09"]
[BlackClock "0:00:52"]

1. e4 {[%clk 0:03:00]}  c5 {[%clk 0:03:00]} 2. a3 {[%clk 0:03:00]}  e6 {[%clk 0:03:00]} 3. b4 {[%clk 0:03:00]}  d5 {[%clk 0:02:51]} 4. exd5 {[%clk 0:02:59]}  Qxd5 {[%clk 0:02:51]} 5. Nf3 {[%clk 0:02:59]}  Nf6 {[%clk 0:02:51]} 6. Bb2 {[%clk 0:02:57]}  Be7 {[%clk 0:02:47]} 7. c4 {[%clk 0:02:56]}  Qd8 {[%clk 0:02:44]} 8. bxc5 {[%clk 0:02:56]}  Bxc5 {[%clk 0:02:44]} 9. d4 {[%clk 0:02:56]}  Be7 {[%clk 0:02:44]} 10. Bd3 {[%clk 0:02:56]}  O-O {[%clk 0:02:44]} 11. O-O {[%clk 0:02:56]}  Bd7 {[%clk 0:02:44]} 12. Ne5 {[%clk 0:02:53]}  Be8 {[%clk 0:02:43]} 13. Nd2 {[%clk 0:02:44]}  Nc6 {[%clk 0:02:43]} 14. Ndf3 {[%clk 0:02:37]}  Nxe5 {[%clk 0:02:36]} 15. Nxe5 {[%clk 0:02:38]}  b6 {[%clk 0:02:28]} 16. Qf3 {[%clk 0:02:29]}  Rc8 {[%clk 0:02:27]} 17. Rad1 {[%clk 0:02:28]}  Qc7 {[%clk 0:02:20]} 18. Bb1 {[%clk 0:02:26]}  Bc6 {[%clk 0:02:11]} 19. d5 {[%clk 0:02:26]}  exd5 {[%clk 0:02:03]} 20. cxd5 {[%clk 0:02:27]}  Ba8 {[%clk 0:01:53]} 21. Ng4 {[%clk 0:02:26]}  Nxg4 {[%clk 0:01:42]} 22. Qxg4 {[%clk 0:02:27]}  g6 {[%clk 0:01:10]} 23. Qd4 {[%clk 0:02:23]}  f6 {[%clk 0:01:07]} 24. d6 {[%clk 0:02:23]}  Qc6 {[%clk 0:01:06]} 25. f3 {[%clk 0:02:17]}  Bd8 {[%clk 0:01:04]} 26. Rfe1 {[%clk 0:02:15]}  Qc5 {[%clk 0:01:02]} 27. Qxc5 {[%clk 0:02:10]}  Rxc5 {[%clk 0:00:57]} 28. h3 {[%clk 0:02:10]}  Rd5 {[%clk 0:00:52]} 29. Ba2 {[%clk 0:02:09]} 1-0


[Site "https://www.chess.com"]

[Event "Titled Tuesday Blitz May 24 Early 2022"]
[White "Sarkar, Justin"]
[Black "Melikyan, Gnel"]
[WhiteFideId "2010011"]
[BlackFideId "54109990"]
[WhiteElo "2020"]
[BlackElo "1772"]
[Result "1-0"]
[Round "03"]
[TimeControl "180+1"]
[Date "2022.05.25"]
[WhiteClock "0:00:27"]
[BlackClock "0:01:36"]

1. e4 {[%clk 0:02:57]}  c5 {[%clk 0:02:59]} 2. Nf3 {[%clk 0:02:54]}  Nc6 {[%clk 0:02:59]} 3. Nc3 {[%clk 0:02:48]}  g6 {[%clk 0:02:59]} 4. d4 {[%clk 0:02:44]}  cxd4 {[%clk 0:03:00]} 5. Nxd4 {[%clk 0:02:44]}  Bg7 {[%clk 0:03:00]} 6. Nde2 {[%clk 0:02:40]}  Nf6 {[%clk 0:03:00]} 7. g3 {[%clk 0:02:34]}  O-O {[%clk 0:02:53]} 8. Bg2 {[%clk 0:02:33]}  d6 {[%clk 0:02:51]} 9. O-O {[%clk 0:02:31]}  Nd7 {[%clk 0:02:49]} 10. Be3 {[%clk 0:02:14]}  Nde5 {[%clk 0:02:49]} 11. b3 {[%clk 0:02:11]}  Be6 {[%clk 0:02:30]} 12. Rc1 {[%clk 0:02:01]}  Qc8 {[%clk 0:02:27]} 13. Nd5 {[%clk 0:01:55]}  Bh3 {[%clk 0:02:23]} 14. c4 {[%clk 0:01:26]}  Bxg2 {[%clk 0:02:18]} 15. Kxg2 {[%clk 0:01:27]}  f5 {[%clk 0:02:15]} 16. exf5 {[%clk 0:01:20]}  Qxf5 {[%clk 0:02:13]} 17. Nd4 {[%clk 0:01:12]}  Nxd4 {[%clk 0:02:09]} 18. Nxe7+ {[%clk 0:01:06]}  Kh8 {[%clk 0:02:09]} 19. Nxf5 {[%clk 0:01:06]}  Nxf5 {[%clk 0:02:10]} 20. Bf4 {[%clk 0:01:04]}  Rfd8 {[%clk 0:02:07]} 21. Qd5 {[%clk 0:01:01]}  Rab8 {[%clk 0:02:06]} 22. h4 {[%clk 0:00:58]}  h5 {[%clk 0:02:04]} 23. Rcd1 {[%clk 0:00:55]}  Kh7 {[%clk 0:02:00]} 24. Rfe1 {[%clk 0:00:53]}  Ne7 {[%clk 0:01:48]} 25. Qe6 {[%clk 0:00:50]}  Nf5 {[%clk 0:01:45]} 26. Bxe5 {[%clk 0:00:46]}  Bxe5 {[%clk 0:01:45]} 27. c5 {[%clk 0:00:35]}  Bc3 {[%clk 0:01:38]} 28. Qf7+ {[%clk 0:00:30]}  Kh6 {[%clk 0:01:36]} 29. Re6 {[%clk 0:00:27]} 1-0


[Site "https://www.chess.com"]

[Event "Titled Tuesday Blitz May 24 Early 2022"]
[White "Seo, Jung Min"]
[Black "Nakamura, Hikaru"]
[WhiteFideId "1734687"]
[BlackFideId "2016192"]
[WhiteElo "2401"]
[BlackElo "2850"]
[Result "0-1"]
[Round "03"]
[TimeControl "180+1"]
[Date "2022.05.24"]
[WhiteClock "0:00:33"]
[BlackClock "0:00:36"]

1. d4 {[%clk 0:03:00]}  g6 {[%clk 0:02:58]} 2. e4 {[%clk 0:03:00]}  Bg7 {[%clk 0:02:59]} 3. Nf3 {[%clk 0:02:59]}  a6 {[%clk 0:02:58]} 4. Bd3 {[%clk 0:02:57]}  d6 {[%clk 0:02:57]} 5. c3 {[%clk 0:02:57]}  Nd7 {[%clk 0:02:56]} 6. h3 {[%clk 0:02:56]}  e5 {[%clk 0:02:56]} 7. dxe5 {[%clk 0:02:55]}  dxe5 {[%clk 0:02:56]} 8. O-O {[%clk 0:02:55]}  Ngf6 {[%clk 0:02:55]} 9. Nbd2 {[%clk 0:02:55]}  O-O {[%clk 0:02:54]} 10. Qe2 {[%clk 0:02:53]}  b5 {[%clk 0:02:53]} 11. a4 {[%clk 0:02:52]}  bxa4 {[%clk 0:02:52]} 12. Bc2 {[%clk 0:02:49]}  a5 {[%clk 0:02:44]} 13. Bxa4 {[%clk 0:02:47]}  Qe7 {[%clk 0:02:36]} 14. Bb5 {[%clk 0:02:45]}  Nb6 {[%clk 0:02:30]} 15. Nc4 {[%clk 0:02:41]}  Nxc4 {[%clk 0:02:27]} 16. Bxc4 {[%clk 0:02:41]}  Bb7 {[%clk 0:02:26]} 17. Bd3 {[%clk 0:02:38]}  Rfd8 {[%clk 0:02:23]} 18. Re1 {[%clk 0:02:38]}  h6 {[%clk 0:02:20]} 19. Nd2 {[%clk 0:02:32]}  Nd7 {[%clk 0:02:17]} 20. Nc4 {[%clk 0:02:24]}  Nc5 {[%clk 0:02:15]} 21. Bc2 {[%clk 0:02:24]}  Ba6 {[%clk 0:02:16]} 22. Be3 {[%clk 0:02:20]}  Bf8 {[%clk 0:01:56]} 23. b3 {[%clk 0:02:18]}  Qe6 {[%clk 0:01:49]} 24. Red1 {[%clk 0:02:12]}  Rxd1+ {[%clk 0:01:44]} 25. Rxd1 {[%clk 0:02:03]}  a4 {[%clk 0:01:28]} 26. Bxc5 {[%clk 0:02:02]}  Bxc5 {[%clk 0:01:28]} 27. Rd5 {[%clk 0:02:02]}  a3 {[%clk 0:01:29]} 28. Bb1 {[%clk 0:01:49]}  Bxc4 {[%clk 0:00:46]} 29. Qxc4 {[%clk 0:01:48]}  Bb6 {[%clk 0:00:36]} 30. Ba2 {[%clk 0:01:36]}  c6 {[%clk 0:00:36]} 31. Rd2 {[%clk 0:01:22]}  Qxc4 {[%clk 0:00:36]} 32. bxc4 {[%clk 0:01:22]}  Bc5 {[%clk 0:00:37]} 33. Kf1 {[%clk 0:01:21]}  Rb8 {[%clk 0:00:36]} 34. Ke2 {[%clk 0:01:22]}  h5 {[%clk 0:00:37]} 35. h4 {[%clk 0:01:21]}  Kf8 {[%clk 0:00:37]} 36. g3 {[%clk 0:01:21]}  Ke7 {[%clk 0:00:37]} 37. Kd1 {[%clk 0:01:17]}  f5 {[%clk 0:00:37]} 38. exf5 {[%clk 0:01:16]}  gxf5 {[%clk 0:00:37]} 39. Ke2 {[%clk 0:01:16]}  e4 {[%clk 0:00:37]} 40. Ke1 {[%clk 0:01:14]}  Ke6 {[%clk 0:00:36]} 41. Ke2 {[%clk 0:01:14]}  Ke5 {[%clk 0:00:37]} 42. Ke1 {[%clk 0:00:58]}  f4 {[%clk 0:00:37]} 43. gxf4+ {[%clk 0:00:59]}  Kxf4 {[%clk 0:00:38]} 44. Ke2 {[%clk 0:00:59]}  Bxf2 {[%clk 0:00:36]} 45. c5 {[%clk 0:00:42]}  Bxh4 {[%clk 0:00:34]} 46. Bf7 {[%clk 0:00:41]}  Rb2 {[%clk 0:00:33]} 47. Bxh5 {[%clk 0:00:37]}  Rxd2+ {[%clk 0:00:33]} 48. Kxd2 {[%clk 0:00:36]}  a2 {[%clk 0:00:34]} 49. Bf7 {[%clk 0:00:35]}  a1=Q {[%clk 0:00:35]} 50. c4 {[%clk 0:00:35]}  Be1+ {[%clk 0:00:36]} 51. Ke2 {[%clk 0:00:35]}  Bc3 {[%clk 0:00:35]} 52. Be6 {[%clk 0:00:33]}  Qe1# {[%clk 0:00:36]} 0-1


[Site "https://www.chess.com"]

[Event "Titled Tuesday Blitz May 24 Early 2022"]
[White "Shevtchenko, Olesya"]
[Black "Khamdamova, Afruza"]
[WhiteFideId "24131890"]
[BlackFideId "14210444"]
[WhiteElo "2003"]
[BlackElo "1660"]
[Result "1-0"]
[Round "03"]
[TimeControl "180+1"]
[Date "2022.05.25"]
[WhiteClock "0:01:20"]
[BlackClock "0:00:20"]

1. c4 {[%clk 0:03:00]}  Nf6 {[%clk 0:02:59]} 2. Nc3 {[%clk 0:03:00]}  g6 {[%clk 0:02:58]} 3. e4 {[%clk 0:02:59]}  d6 {[%clk 0:02:48]} 4. d4 {[%clk 0:02:59]}  Bg7 {[%clk 0:02:48]} 5. Nf3 {[%clk 0:02:59]}  O-O {[%clk 0:02:46]} 6. h3 {[%clk 0:02:59]}  c5 {[%clk 0:02:46]} 7. d5 {[%clk 0:02:59]}  Nbd7 {[%clk 0:02:18]} 8. Bd3 {[%clk 0:02:55]}  b6 {[%clk 0:02:15]} 9. O-O {[%clk 0:02:54]}  Ba6 {[%clk 0:02:15]} 10. Re1 {[%clk 0:02:48]}  Ne8 {[%clk 0:02:11]} 11. Bf4 {[%clk 0:02:46]}  Ne5 {[%clk 0:01:53]} 12. Nxe5 {[%clk 0:02:44]}  dxe5 {[%clk 0:01:53]} 13. Be3 {[%clk 0:02:36]}  Nd6 {[%clk 0:01:52]} 14. b3 {[%clk 0:02:24]}  f5 {[%clk 0:01:51]} 15. f3 {[%clk 0:02:16]}  f4 {[%clk 0:01:44]} 16. Bf2 {[%clk 0:02:13]}  Qd7 {[%clk 0:01:36]} 17. Qe2 {[%clk 0:02:07]}  Bb7 {[%clk 0:01:32]} 18. a3 {[%clk 0:02:00]}  a5 {[%clk 0:01:29]} 19. Rab1 {[%clk 0:01:58]}  Rac8 {[%clk 0:01:12]} 20. b4 {[%clk 0:01:57]}  cxb4 {[%clk 0:01:11]} 21. axb4 {[%clk 0:01:57]}  axb4 {[%clk 0:01:09]} 22. Rxb4 {[%clk 0:01:58]}  Ba6 {[%clk 0:00:59]} 23. Bxb6 {[%clk 0:01:45]}  Rb8 {[%clk 0:00:35]} 24. c5 {[%clk 0:01:43]}  Bxd3 {[%clk 0:00:35]} 25. Qxd3 {[%clk 0:01:43]}  Nc8 {[%clk 0:00:34]} 26. Ba5 {[%clk 0:01:37]}  Rxb4 {[%clk 0:00:28]} 27. Bxb4 {[%clk 0:01:37]}  Na7 {[%clk 0:00:22]} 28. Qc4 {[%clk 0:01:27]}  Rb8 {[%clk 0:00:21]} 29. c6 {[%clk 0:01:21]}  Qc7 {[%clk 0:00:20]} 30. d6+ {[%clk 0:01:20]} 1-0


[Site "https://www.chess.com"]

[Event "Titled Tuesday Blitz May 24 Early 2022"]
[White "Shton, Roman"]
[Black "Perera Alfonso, Rene Humberto"]
[WhiteFideId "14137461"]
[BlackFideId "3514722"]
[WhiteElo "2013"]
[BlackElo "2313"]
[Result "0-1"]
[Round "03"]
[TimeControl "180+1"]
[Date "2022.05.25"]
[WhiteClock "0:00:21"]
[BlackClock "0:02:08"]

1. d4 {[%clk 0:03:00]}  d5 {[%clk 0:03:00]} 2. Nf3 {[%clk 0:03:00]}  Nf6 {[%clk 0:02:59]} 3. g3 {[%clk 0:03:01]}  Bg4 {[%clk 0:02:59]} 4. Bg2 {[%clk 0:03:01]}  e6 {[%clk 0:02:58]} 5. c4 {[%clk 0:02:29]}  c6 {[%clk 0:02:58]} 6. Nc3 {[%clk 0:02:27]}  Be7 {[%clk 0:02:57]} 7. Qb3 {[%clk 0:02:16]}  Qb6 {[%clk 0:02:56]} 8. c5 {[%clk 0:02:13]}  Qa6 {[%clk 0:02:55]} 9. Bf1 {[%clk 0:02:12]}  b5 {[%clk 0:02:53]} 10. Ne5 {[%clk 0:01:42]}  Bh5 {[%clk 0:02:47]} 11. e4 {[%clk 0:01:42]}  O-O {[%clk 0:02:45]} 12. Bd3 {[%clk 0:01:37]}  Nbd7 {[%clk 0:02:42]} 13. Nxd7 {[%clk 0:01:30]}  Nxd7 {[%clk 0:02:41]} 14. exd5 {[%clk 0:01:29]}  exd5 {[%clk 0:02:40]} 15. O-O {[%clk 0:01:22]}  Qc8 {[%clk 0:02:40]} 16. Bf4 {[%clk 0:01:19]}  Bf3 {[%clk 0:02:38]} 17. Rfe1 {[%clk 0:01:17]}  Bf6 {[%clk 0:02:36]} 18. Be3 {[%clk 0:01:07]}  Re8 {[%clk 0:02:31]} 19. Ne2 {[%clk 0:01:04]}  Nf8 {[%clk 0:02:26]} 20. Qc3 {[%clk 0:00:55]}  Ng6 {[%clk 0:02:19]} 21. Nf4 {[%clk 0:00:52]}  Nxf4 {[%clk 0:02:15]} 22. Bxf4 {[%clk 0:00:52]}  Qg4 {[%clk 0:02:15]} 23. Bf1 {[%clk 0:00:40]}  g5 {[%clk 0:02:14]} 24. h3 {[%clk 0:00:38]}  Qf5 {[%clk 0:02:10]} 25. Qxf3 {[%clk 0:00:36]}  gxf4 {[%clk 0:02:10]} 26. Qxf4 {[%clk 0:00:25]}  Qxf4 {[%clk 0:02:09]} 27. gxf4 {[%clk 0:00:26]}  Bxd4 {[%clk 0:02:09]} 28. Rxe8+ {[%clk 0:00:22]}  Rxe8 {[%clk 0:02:10]} 29. Rd1 {[%clk 0:00:20]}  Bxb2 {[%clk 0:02:09]} 30. Rc1 {[%clk 0:00:21]}  Bxc1 {[%clk 0:02:08]} 0-1


[Site "https://www.chess.com"]

[Event "Titled Tuesday Blitz May 24 Early 2022"]
[White "Shtyka, Sergey"]
[Black "Galiana Fernandez, Adrian"]
[WhiteFideId "4138465"]
[BlackFideId "32010150"]
[WhiteElo "2014"]
[BlackElo "2133"]
[Result "1-0"]
[Round "03"]
[TimeControl "180+1"]
[Date "2022.05.25"]
[WhiteClock "0:02:18"]
[BlackClock "0:02:13"]

1. e4 {[%clk 0:02:53]}  e5 {[%clk 0:02:59]} 2. Nf3 {[%clk 0:02:53]}  Nc6 {[%clk 0:02:58]} 3. Nc3 {[%clk 0:02:54]}  Nf6 {[%clk 0:02:58]} 4. Bb5 {[%clk 0:02:54]}  Nd4 {[%clk 0:02:57]} 5. Ba4 {[%clk 0:02:54]}  c6 {[%clk 0:02:56]} 6. d3 {[%clk 0:02:54]}  d6 {[%clk 0:02:42]} 7. Nxd4 {[%clk 0:02:50]}  exd4 {[%clk 0:02:42]} 8. Ne2 {[%clk 0:02:50]}  b5 {[%clk 0:02:42]} 9. Bb3 {[%clk 0:02:50]}  c5 {[%clk 0:02:42]} 10. a4 {[%clk 0:02:48]}  b4 {[%clk 0:02:42]} 11. Bg5 {[%clk 0:02:47]}  Be7 {[%clk 0:02:42]} 12. Ng3 {[%clk 0:02:46]}  O-O {[%clk 0:02:41]} 13. Qd2 {[%clk 0:02:29]}  Nxe4 {[%clk 0:02:28]} 14. Nxe4 {[%clk 0:02:25]}  d5 {[%clk 0:02:13]} 15. Bxe7 {[%clk 0:02:18]} 1-0


[Site "https://www.chess.com"]